bitfinex/quotes_ETHUSD_20241116
["timestamp","ask_amount","ask_price","bid_price","bid_amount"]
[1731742697082,3.2173,3108.2,3107.6,3.2179]
[1731742697279,3.21739,3108.1,3107.5,3.218]
[1731742697476,3.21739,3108.1,3107.5,3.937685]
[1731742698225,3.21739,3108.1,3107.6,0.55]
[1731742698588,3.29157005,3108.3,3107.6,0.55]
[1731742698788,3.29157005,3108.3,3107.6,3.76784]
[1731742698993,3.21729,3108.2,3107.6,3.76784]
[1731742699220,0.07436005,3108.8,3108.1,3.21733]
[1731742699420,3.2166,3108.9,3108.2,3.97806]
[1731742699618,3.21668,3108.8,3108.2,3.97806]
[1731742699825,3.21678,3108.7,3108.2,0.7608]
[1731742700046,3.21689,3108.6,3108.2,0.7608]
[1731742702355,3.217,3108.5,3108.2,0.7608]
[1731742702807,3.21685,3108.7,3108.2,0.7608]
[1731742703015,3.21671,3108.8,3108.3,0.55]
[1731742704411,6.43301,3109.0,3108.3,3.76717]
[1731742704614,0.07436005,3109.1,3108.3,1.324525]
[1731742704615,3.29073005,3109.1,3108.3,1.324525]
[1731742705152,3.21647,3109.0,3108.3,1.324525]
[1731742705510,3.21647,3109.0,3108.3,4.541645]
[1731742707322,3.21647,3109.0,3108.4,3.97788]
[1731742707525,3.21647,3109.0,3108.4,4.8298465]
[1731742708255,3.21628,3109.2,3108.5,3.83128185]
[1731742708462,3.21628,3109.2,3108.5,3.76695]
[1731742708746,3.21628,3109.2,3108.6,0.7608]
[1731742709726,3.21608,3109.4,3108.6,0.7608]
[1731742709727,3.21608,3109.4,3108.7,3.28105797]
[1731742709928,3.21615,3109.3,3108.8,0.4041858]
[1731742712474,3.21599,3109.5,3108.9,3.21657]
[1731742712627,3.21599,3109.5,3109.0,0.8026]
[1731742714973,3.21636,3109.1,3108.8,0.4041858]
[1731742715187,0.07436005,3109.0,3108.2,3.8026]
[1731742715475,3.21668,3108.8,3108.2,7.01983]
[1731742715977,3.21668,3108.8,3108.3,3.21718]
[1731742716276,0.07436005,3109.0,3108.3,3.21718]
[1731742716277,3.29088005,3109.0,3108.3,3.21718]
[1731742716576,3.29088005,3109.0,3108.4,0.701978]
[1731742716577,3.21652,3109.0,3108.4,0.701978]
[1731742717166,3.2166,3108.9,3108.4,0.701978]
[1731742718580,3.21691,3108.6,3107.9,3.21754]
[1731742718783,3.21718,3108.4,3107.8,1.124]
[1731742719076,3.21718,3108.4,3107.9,0.434179]
[1731742719477,3.21741,3108.1,3107.9,0.434179]
[1731742719689,3.21741,3108.1,3107.8,0.8026]
[1731742719984,3.21736,3108.2,3107.8,0.8026]
[1731742722739,3.2176,3107.9,3107.8,0.8026]
[1731742723067,0.07436005,3108.1,3107.4,0.8026]
[1731742723068,3.21771,3107.8,3107.4,0.8026]
[1731742724039,3.29191005,3108.0,3107.4,0.8026]
[1731742724249,3.21764,3107.9,3107.4,0.8026]
[1731742725547,0.07436005,3108.0,3107.4,0.8026]
[1731742725548,3.21772,3107.8,3107.4,0.8026]
[1731742725753,3.21772,3107.8,3107.4,1.204692]
[1731742728311,3.29187005,3108.0,3107.4,1.204692]
[1731742728621,0.07436005,3108.5,3107.8,0.8026]
[1731742728916,3.2172,3108.3,3107.8,0.8026]
[1731742729120,0.07436005,3108.5,3107.8,1.259644]
[1731742729286,3.21712,3108.4,3107.8,1.259644]
[1731742730025,3.21719,3108.3,3107.8,1.259644]
[1731742730325,3.21719,3108.3,3107.8,0.8026]
[1731742734385,3.21731,3108.2,3107.8,0.8026]
[1731742736183,3.21711,3108.4,3107.8,0.8026]
[1731742736744,3.21721,3108.3,3107.8,0.8026]
[1731742737579,3.21731,3108.2,3107.8,0.8026]
[1731742739328,3.21731,3108.2,3107.8,1.259651]
[1731742739746,3.21711,3108.4,3107.8,1.259651]
[1731742739916,3.21719,3108.3,3107.8,1.259651]
[1731742741559,3.21705,3108.5,3107.9,3.76759]
[1731742741848,3.2171,3108.4,3107.9,0.55]
[1731742742703,3.2171,3108.4,3107.9,1.007021]
[1731742742904,3.21705,3108.5,3107.9,1.007021]
[1731742743098,3.2172,3108.3,3107.9,0.55]
[1731742743617,3.21705,3108.5,3107.9,0.55]
[1731742744007,3.21709,3108.4,3107.9,0.55]
[1731742744217,3.21705,3108.5,3107.9,0.55]
[1731742744604,3.21709,3108.4,3107.9,0.55]
[1731742744943,3.21709,3108.4,3107.9,1.007029]
[1731742745098,3.21681,3108.7,3107.9,1.007029]
[1731742745303,3.29130005,3108.6,3107.9,4.224549]
[1731742745536,3.217,3108.5,3107.9,1.007029]
[1731742747202,3.21721,3108.3,3107.9,1.007029]
[1731742747405,3.21721,3108.3,3107.9,0.55]
[1731742749641,3.217,3108.5,3107.9,3.76754]
[1731742749842,3.217,3108.5,3108.0,0.8326]
[1731742750249,3.21678,3108.7,3108.1,0.55]
[1731742750550,3.21691,3108.6,3108.1,0.55]
[1731742750771,3.21691,3108.6,3108.1,1.010014]
[1731742752982,0.07436005,3108.9,3108.1,1.010014]
[1731742752983,3.29096005,3108.9,3108.1,1.010014]
[1731742753182,3.21676,3108.8,3108.1,4.227384]
[1731742753346,3.2169,3108.6,3108.1,1.010014]
[1731742756040,3.21702,3108.5,3108.1,1.010014]
[1731742756239,3.2169,3108.6,3108.1,1.010014]
[1731742756240,3.2171,3108.4,3108.1,1.010014]
[1731742756491,3.2171,3108.4,3108.1,0.55]
[1731742756637,3.21719,3108.3,3108.1,0.55]
[1731742756981,3.21774,3107.8,3107.6,0.8311]
[1731742757280,3.21774,3107.8,3107.1,0.8311]
[1731742757590,3.21774,3107.8,3107.2,0.16079894]
[1731742758237,3.21798,3107.6,3107.2,0.16079894]
[1731742758784,3.2181,3107.5,3107.2,0.16079894]
[1731742761276,3.21781,3107.7,3107.3,0.55]
[1731742762183,3.21762,3107.9,3107.3,0.55]
[1731742762184,3.21794,3107.6,3107.3,0.55]
[1731742762781,3.21777,3107.8,3107.3,0.55]
[1731742763133,3.21763,3107.9,3107.3,0.55]
[1731742763351,3.21771,3107.8,3107.3,0.55]
[1731742764339,6.43507,3108.0,3107.4,0.41674899]
[1731742764675,3.2176,3107.9,3107.4,0.41674899]
[1731742764884,3.2176,3107.9,3107.4,0.8311]
[1731742765465,3.21772,3107.8,3107.4,0.8311]
[1731742765978,3.2176,3107.9,3107.4,0.8311]
[1731742766154,3.21783,3107.7,3107.4,0.8311]
[1731742766752,3.21799,3107.6,3107.4,0.8311]
[1731742767154,3.21799,3107.6,3106.9,0.3214]
[1731742767357,3.21833,3107.2,3106.6,0.8311]
[1731742768389,3.21829,3107.3,3106.6,0.8954709]
[1731742768573,3.29251005,3107.4,3106.7,3.39054709]
[1731742768574,3.21841,3107.2,3106.7,3.39054709]
[1731742768953,3.21856,3107.0,3106.7,0.39054709]
[1731742769861,3.21841,3107.2,3106.3,0.00966538]
[1731742769862,3.21874,3106.8,3106.3,0.00966538]
[1731742770062,0.22196005,3106.9,3106.3,0.00966538]
[1731742770063,0.07436005,3106.7,3106.3,0.00966538]
[1731742770263,3.21916,3106.4,3106.3,0.00966538]
[1731742770686,3.21907,3106.5,3106.3,0.00966538]
[1731742773875,0.07436005,3107.0,3106.3,0.00966538]
[1731742774100,3.21884,3106.8,3106.3,0.55966538]
[1731742774437,3.21884,3106.8,3106.3,1.02067292]
[1731742774770,0.07436005,3107.0,3106.3,1.02067292]
[1731742775000,3.21867,3106.9,3106.3,1.02067292]
[1731742775515,3.21877,3106.8,3106.3,1.02067292]
[1731742775812,3.21877,3106.8,3106.3,0.55966538]
[1731742778602,3.21861,3107.0,3106.3,0.55966538]
[1731742778801,3.29282005,3107.1,3106.3,3.77891538]
[1731742779000,3.21825,3107.3,3106.7,0.8115]
[1731742779721,3.21825,3107.3,3106.8,0.458037]
[1731742781124,3.21825,3107.3,3106.9,0.3214]
[1731742781289,3.21825,3107.3,3106.8,0.458037]
[1731742781487,3.29219005,3107.7,3107.0,3.21845]
[1731742781674,3.21783,3107.7,3107.1,0.06436209]
[1731742781873,3.21792,3107.6,3107.1,0.06436209]
[1731742782074,3.21803,3107.5,3106.9,0.7748]
[1731742782406,3.21814,3107.4,3106.9,1.49603]
[1731742782572,3.21814,3107.4,3106.9,0.7748]
[1731742785622,3.21792,3107.6,3106.9,0.7748]
[1731742785623,6.4359,3107.6,3106.9,0.7748]
[1731742786274,3.21792,3107.6,3106.9,4.714665]
[1731742786583,6.12464776,3107.8,3107.2,0.7748]
[1731742788075,3.21781,3107.7,3107.2,0.7748]
[1731742788295,3.21794,3107.6,3107.2,0.7748]
[1731742790434,0.07436005,3107.8,3107.2,0.7748]
[1731742790749,3.21781,3107.7,3107.3,0.55]
[1731742794037,3.2182,3107.4,3107.2,0.7748]
[1731742794266,3.21819,3107.4,3107.2,0.7748]
[1731742796251,3.2181,3107.5,3107.2,0.7748]
[1731742796467,3.21822,3107.3,3107.0,0.8202]
[1731742797282,3.21813,3107.4,3107.0,0.8202]
[1731742798239,3.21823,3107.3,3107.0,0.8202]
[1731742798939,3.21813,3107.4,3107.0,0.8202]
[1731742800370,3.29246005,3107.5,3107.0,0.8202]
[1731742800540,3.21835,3107.2,3107.0,0.8202]
[1731742801253,4.56045264,3107.1,3106.6,0.8202]
[1731742801457,3.21866,3106.9,3106.6,0.8202]
[1731742802291,3.21881,3106.8,3106.6,0.8202]
[1731742802445,3.21866,3106.9,3106.6,0.8202]
[1731742802646,3.21913,3106.5,3106.3,0.00966538]
[1731742804299,3.21902,3106.6,3106.3,0.00966538]
[1731742804767,1.41638269,3106.8,3106.3,0.00966538]
[1731742804768,3.21916,3106.4,3106.3,0.00966538]
[1731742806003,0.07436005,3106.5,3106.3,0.00966538]
[1731742806293,3.29343005,3106.5,3106.3,0.00966538]
[1731742806496,3.21916,3106.4,3106.3,0.00966538]
[1731742807061,3.29344005,3106.5,3106.3,0.00966538]
[1731742807258,0.07436005,3106.5,3106.3,0.00966538]
[1731742807499,3.21854,3107.0,3106.4,0.8202]
[1731742807854,3.21854,3107.0,3106.4,1.54704354]
[1731742808505,3.21854,3107.0,3106.4,4.83050829]
[1731742809105,3.21864,3106.9,3106.4,1.61141829]
[1731742809257,3.21864,3106.9,3106.4,1.54704354]
[1731742809458,3.21875,3106.8,3106.4,0.8202]
[1731742809676,3.21902,3106.6,3106.3,0.00966538]
[1731742810561,3.21916,3106.4,3106.3,0.00966538]
[1731742811617,3.21902,3106.6,3106.3,0.00966538]
[1731742812208,0.07436005,3106.7,3106.3,0.00966538]
[1731742812524,3.29325005,3106.7,3106.3,0.00966538]
[1731742813517,0.07436005,3106.7,3106.3,0.00966538]
[1731742813826,3.21916,3106.4,3106.3,0.00966538]
[1731742821602,3.36738,3105.8,3105.7,0.01960055]
[1731742821829,3.704118,3105.8,3105.7,0.01960055]
[1731742822126,3.36738,3105.8,3105.7,0.01960055]
[1731742822498,3.21978,3105.8,3105.7,0.01960055]
[1731742823096,0.07436005,3105.9,3105.7,0.01960055]
[1731742823449,0.07436005,3105.9,3105.3,0.55]
[1731742823602,3.21938,3106.2,3105.7,0.7939]
[1731742823946,3.21918,3106.4,3105.8,0.401384]
[1731742823947,3.21948,3106.1,3105.8,0.401384]
[1731742824245,3.21948,3106.1,3105.7,0.7939]
[1731742824562,3.2197,3105.9,3105.7,0.7939]
[1731742824902,3.21969,3105.9,3105.7,0.7939]
[1731742825139,1.34311285,3106.0,3105.3,3.77028]
[1731742825140,3.21978,3105.8,3105.4,0.7939]
[1731742825338,1.34311285,3105.7,3105.4,0.7939]
[1731742825562,1.34311285,3105.7,3105.5,0.55]
[1731742827136,3.21978,3105.8,3105.5,0.55]
[1731742828201,4.56302285,3105.7,3105.5,0.55]
[1731742830688,3.29434005,3105.6,3105.1,0.8232]
[1731742830903,3.22022,3105.4,3105.1,0.8232]
[1731742831196,1.34311285,3105.5,3104.6,0.1460532]
[1731742831197,3.22061,3105.0,3104.6,0.1460532]
[1731742831357,3.22092,3104.7,3104.6,0.1460532]
[1731742831538,1.34311285,3104.7,3104.6,0.1460532]
[1731742832382,4.6383929,3104.7,3104.6,0.1460532]
[1731742832740,0.1476,3106.1,3104.7,0.8232]
[1731742832942,3.21978,3105.8,3105.1,4.04369]
[1731742833185,3.29394005,3106.0,3105.2,3.22039]
[1731742833398,3.92915395,3106.0,3105.2,3.22039]
[1731742833608,3.92915395,3106.0,3105.3,3.77019]
[1731742833769,3.05826893,3106.1,3105.6,3.76996]
[1731742833770,0.07436005,3106.1,3105.6,3.76996]
[1731742833978,3.29362005,3106.3,3105.8,0.55]
[1731742834158,3.92880895,3106.3,3105.8,0.55]
[1731742835363,3.21908,3106.5,3105.8,0.55]
[1731742835557,0.07436005,3106.4,3105.8,3.76969]
[1731742836175,3.21916,3106.4,3105.8,3.76969]
[1731742836995,3.21927,3106.3,3105.8,0.55]
[1731742837468,6.20418898,3106.4,3105.8,0.55]
[1731742837667,3.21927,3106.3,3105.8,0.55]
[1731742838501,0.07436005,3106.4,3105.8,3.76974]
[1731742839412,0.07436005,3106.4,3105.8,0.55]
[1731742840410,3.21927,3106.3,3105.8,0.55]
[1731742840916,3.21943,3106.2,3105.8,0.55]
[1731742841287,3.92859795,3106.5,3105.8,0.55]
[1731742841288,3.21918,3106.4,3106.0,0.55]
[1731742841619,3.29371005,3106.3,3105.8,0.55]
[1731742841779,0.07436005,3106.3,3105.8,0.55]
[1731742842324,0.07436005,3106.4,3105.8,3.76976]
[1731742842907,3.29352005,3106.4,3105.8,3.76976]
[1731742843306,3.21926,3106.3,3105.8,0.55]
[1731742844816,3.21956,3106.1,3105.8,0.55]
[1731742845599,3.21957,3106.0,3105.8,0.55]
[1731742848328,3.21957,3106.0,3105.5,0.55]
[1731742848935,3.44134005,3106.2,3105.5,3.77008]
[1731742849119,3.29374005,3106.2,3105.5,3.77008]
[1731742849655,0.07436005,3106.2,3105.8,0.55]
[1731742849840,3.2192,3106.4,3105.8,0.55]
[1731742849841,3.2192,3106.4,3105.8,3.83407855]
[1731742850960,3.2192,3106.4,3105.8,3.76969]
[1731742852142,3.21885,3106.7,3106.2,0.7542]
[1731742852307,3.21906,3106.5,3106.3,0.55]
[1731742852512,3.21914,3106.5,3106.3,0.55]
[1731742852736,3.21916,3106.4,3106.3,0.55]
[1731742853244,3.21928,3106.3,3106.0,0.55]
[1731742853537,3.21928,3106.3,3105.7,1.3042]
[1731742853844,3.87055001,3106.3,3105.7,1.3042]
[1731742854916,0.07436005,3106.5,3106.0,0.55]
[1731742855640,0.07436005,3106.7,3106.0,0.55]
[1731742855818,0.07436005,3106.7,3106.1,3.21937]
[1731742856338,0.07436005,3106.7,3106.2,0.55]
[1731742856700,3.29321005,3106.7,3106.2,0.55]
[1731742856901,3.65385735,3106.7,3106.2,0.55]
[1731742858049,0.3132629,3106.8,3106.4,0.55]
[1731742858207,3.07436005,3106.9,3106.4,0.55]
[1731742858412,6.29301005,3106.9,3106.4,0.55]
[1731742858630,3.21883,3106.8,3106.4,0.55]
[1731742859635,4.52800494,3106.8,3106.4,0.55]
[1731742860168,3.21866,3106.9,3106.4,0.55]
[1731742860319,0.07436005,3106.9,3106.4,0.55]
[1731742860524,3.21875,3106.8,3106.4,0.55]
[1731742860766,0.07436005,3106.9,3106.4,0.55]
[1731742861076,0.07436005,3106.9,3105.7,0.7679]
[1731742861077,3.21952,3106.1,3105.7,0.7679]
[1731742861568,3.21964,3106.0,3105.7,0.7679]
[1731742862373,3.2198,3105.8,3105.3,0.7679]
[1731742862666,3.2198,3105.8,3105.4,0.55]
[1731742862824,3.21964,3106.0,3105.4,0.55]
[1731742863019,3.21964,3106.0,3105.4,3.77017]
[1731742863225,3.29384005,3106.1,3105.6,0.55]
[1731742866167,3.29384005,3106.1,3105.8,0.55]
[1731742866478,3.29384005,3106.1,3105.6,0.55]
[1731742867438,0.07436005,3106.1,3105.6,3.76991]
[1731742867641,3.44133005,3106.2,3105.6,3.76991]
[1731742869031,0.07436005,3106.2,3105.7,3.21985]
[1731742869241,3.21926,3106.3,3105.8,1.3179]
[1731742871688,3.21936,3106.2,3105.8,1.3179]
[1731742874349,3.29353005,3106.4,3105.8,1.3179]
[1731742874815,3.21927,3106.3,3105.8,1.3179]
[1731742878202,3.29353005,3106.4,3105.8,1.3179]
[1731742879305,3.29353005,3106.4,3105.8,4.53766]
[1731742880112,9.27724893,3106.6,3105.8,4.545452]
[1731742880113,3.21898,3106.6,3105.8,4.545452]
[1731742880408,3.21898,3106.6,3106.0,1.346]
[1731742880592,3.21898,3106.6,3106.2,0.55]
[1731742881365,3.21898,3106.6,3106.1,0.55]
[1731742883719,3.21914,3106.5,3106.1,0.55]
[1731742884076,3.29334005,3106.6,3106.1,0.55]
[1731742884503,3.21907,3106.5,3106.1,0.55]
[1731742886429,1.49018404,3106.4,3106.1,0.55]
[1731742886627,4.78379409,3106.4,3106.1,0.55]
[1731742886789,4.78379409,3106.4,3105.9,0.55]
[1731742886987,3.21933,3106.3,3105.7,0.55]
[1731742887187,3.21933,3106.3,3105.7,3.76986]
[1731742887411,3.21906,3106.5,3105.9,0.55]
[1731742887618,4.56164404,3106.5,3105.9,3.76961]
[1731742888427,3.21918,3106.4,3105.8,0.55]
[1731742889285,3.29342005,3106.5,3105.8,3.76972]
[1731742889629,3.21917,3106.4,3105.8,3.76972]
[1731742889935,3.29342005,3106.5,3105.9,4.01565]
[1731742890220,3.21906,3106.5,3106.0,0.55]
[1731742890385,3.21916,3106.4,3106.0,0.55]
[1731742890784,3.21906,3106.5,3106.0,0.55]
[1731742891440,0.07436005,3106.6,3106.0,3.7695]
[1731742891613,0.07436005,3106.6,3106.0,4.548015]
[1731742891981,3.29331005,3106.6,3106.0,4.548015]
[1731742892685,3.29331005,3106.6,3106.0,1.39289948]
[1731742893289,3.21895,3106.6,3106.0,1.39289948]
[1731742893625,3.21895,3106.6,3106.0,4.61243948]
[1731742894187,3.21895,3106.6,3106.0,1.39289948]
[1731742894503,3.21895,3106.6,3106.0,1.328515]
[1731742894721,0.07436005,3106.5,3106.0,1.328515]
[1731742895037,3.29322005,3106.7,3106.0,4.61240956]
[1731742895329,3.21896,3106.6,3106.0,1.39289956]
[1731742895525,3.21896,3106.6,3106.0,3.83393456]
[1731742895728,3.21886,3106.7,3106.1,3.21943]
[1731742895888,3.29322005,3106.7,3106.4,0.55]
[1731742896627,3.29322005,3106.7,3106.6,0.55]
[1731742896830,4.25011158,3106.7,3106.4,0.55]
[1731742897132,3.21895,3106.6,3106.4,0.55]
[1731742899592,0.1476,3106.4,3105.3,0.8182]
[1731742899924,3.21998,3105.7,3105.3,0.8182]
[1731742901031,3.29439005,3105.6,3104.8,4.03901]
[1731742901233,3.22003,3105.6,3104.9,0.97911012]
[1731742901395,3.22003,3105.6,3105.0,0.16091012]
[1731742901740,3.22003,3105.6,3104.9,0.8182]
[1731742901965,9.0676,3106.6,3105.4,0.8182]
[1731742902237,9.0676,3106.6,3105.0,2.97384714]
[1731742902238,3.21902,3106.6,3106.0,0.8182]
[1731742902390,3.21874,3106.8,3106.3,0.8182]
[1731742902806,3.21874,3106.8,3106.4,0.61437871]
[1731742903793,3.21905,3106.5,3106.4,0.55]
[1731742906145,3.36655,3106.6,3105.9,0.88258293]
[1731742906289,3.21956,3106.1,3105.9,0.8182]
[1731742906643,3.21957,3106.0,3105.9,0.8182]
[1731742906844,3.21945,3106.2,3105.1,6.22049]
[1731742906845,3.21999,3105.6,3105.1,0.8182]
[1731742908109,6.43965,3105.8,3105.1,0.8182]
[1731742908314,3.2198,3105.8,3105.1,4.0387]
[1731742908516,3.2198,3105.8,3105.2,0.55]
[1731742908709,3.2196,3106.0,3105.4,3.77018]
[1731742909040,3.2196,3106.0,3105.6,0.55]
[1731742909247,3.21939,3106.2,3104.7,0.8182]
[1731742909248,3.2204,3105.2,3104.7,0.8182]
[1731742909423,3.22061,3105.0,3104.7,0.8182]
[1731742910943,3.22061,3105.0,3104.8,0.55]
[1731742911141,3.22052,3105.1,3104.8,0.55]
[1731742915578,3.2204,3105.2,3104.8,0.55]
[1731742915876,3.22052,3105.1,3104.8,0.55]
[1731742917365,3.21989,3105.7,3105.2,0.55]
[1731742917678,3.22014,3105.5,3105.2,0.55]
[1731742918942,3.22024,3105.4,3105.2,0.55]
[1731742919384,3.22014,3105.5,3105.2,0.55]
[1731742919741,3.22021,3105.4,3105.2,0.55]
[1731742920341,3.2203,3105.3,3105.2,0.55]
[1731742920551,3.864348,3105.3,3105.1,0.759]
[1731742920758,3.2204,3105.2,3105.1,0.759]
[1731742921761,3.2204,3105.2,3105.1,1.309]
[1731742924605,3.2204,3105.2,3105.0,0.55]
[1731742924743,3.22052,3105.1,3105.0,0.55]
[1731742929148,3.22052,3105.1,3104.7,0.55]
[1731742929388,3.22075,3104.9,3104.7,0.55]
[1731742931314,3.22075,3104.9,3104.8,0.55]
[1731742931889,3.22075,3104.9,3104.7,0.55]
[1731742934295,3.22081,3104.8,3104.7,0.55]
[1731742934495,3.22075,3104.9,3104.7,0.55]
[1731742935053,3.22081,3104.8,3104.7,0.55]
[1731742936812,3.29517005,3104.8,3104.7,0.55]
[1731742938507,3.22092,3104.7,3104.6,0.1460532]
[1731742939703,3.22092,3104.7,3104.6,0.6960532]
[1731742941378,3.44288005,3104.7,3104.6,0.6960532]
[1731742941678,3.22092,3104.7,3104.6,0.6960532]
[1731742942122,3.29528005,3104.7,3104.6,0.6960532]
[1731742942323,3.22092,3104.7,3104.6,0.6960532]
[1731742943330,3.29528005,3104.7,3104.6,0.6960532]
[1731742944037,3.94688906,3104.7,3104.6,0.6960532]
[1731742944386,3.87252901,3104.7,3104.6,0.6960532]
[1731742944783,3.22092,3104.7,3104.6,0.6960532]
[1731742946896,3.29528005,3104.7,3104.6,0.6960532]
[1731742947819,3.22092,3104.7,3104.6,0.6960532]
[1731742949044,0.07436005,3104.8,3104.7,0.55]
[1731742949045,3.29517005,3104.8,3104.7,0.55]
[1731742951857,3.22081,3104.8,3104.7,0.55]
[1731742952411,3.29490005,3105.1,3104.7,0.55]
[1731742952412,3.22069,3105.0,3104.7,0.55]
[1731742953243,3.22073,3104.9,3104.7,0.55]
[1731742953452,3.29517005,3104.8,3104.7,0.55]
[1731742954675,3.22081,3104.8,3104.7,0.55]
[1731742959133,3.22001,3105.6,3105.0,3.22059]
[1731742959380,3.22001,3105.6,3105.2,0.8246]
[1731742959578,3.22001,3105.6,3105.3,0.55]
[1731742959733,4.56403792,3105.6,3105.3,0.55]
[1731742960558,3.29404005,3105.9,3105.3,0.55]
[1731742960875,3.21985,3105.8,3105.3,0.55]
[1731742961177,0.07436005,3105.7,3105.3,0.55]
[1731742961489,0.07436005,3105.7,3105.3,1.009509]
[1731742961676,0.07436005,3105.8,3105.3,4.229769]
[1731742962648,3.29404005,3105.9,3105.3,4.229769]
[1731742963057,3.21968,3105.9,3105.5,0.55]
[1731742965271,3.21958,3106.0,3105.7,0.55]
[1731742966311,3.21953,3106.1,3105.7,0.55]
[1731742966875,3.21968,3105.9,3105.7,0.55]
[1731742967114,3.21958,3106.0,3105.7,0.55]
[1731742968188,3.29394005,3106.0,3105.7,0.55]
[1731742968417,3.21958,3106.0,3105.7,0.55]
[1731742968714,0.07436005,3106.1,3105.7,0.55]
[1731742968715,3.29384005,3106.1,3105.7,0.55]
[1731742970316,3.21957,3106.0,3105.7,0.55]
[1731742970622,0.07436005,3105.9,3105.3,0.459509]
[1731742970910,0.07436005,3105.9,3105.4,0.825]
[1731742970911,3.21988,3105.7,3105.4,0.825]
[1731742971114,3.29413005,3105.9,3105.4,0.825]
[1731742971298,3.21977,3105.9,3105.4,0.825]
[1731742972322,3.21979,3105.8,3105.5,0.55]
[1731742973173,3.21976,3105.9,3105.5,0.55]
[1731742973427,3.2198,3105.8,3105.5,0.55]
[1731742975720,3.29416005,3105.8,3105.5,0.55]
[1731742976105,3.2198,3105.8,3105.5,0.55]
[1731742976807,6.51357005,3106.0,3105.5,0.55]
[1731742977215,3.21968,3105.9,3105.5,0.55]
[1731742978627,3.2194,3106.2,3105.5,0.55]
[1731742978784,3.21957,3106.0,3105.5,1.01595793]
[1731742978983,0.07436005,3106.1,3105.5,1.01595793]
[1731742979203,0.07436005,3106.1,3105.7,0.55]
[1731742979733,3.21958,3106.0,3105.7,0.55]
[1731742980580,3.29384005,3106.1,3105.7,0.55]
[1731742980830,4.56277668,3106.0,3105.7,0.55]
[1731742981622,4.56277668,3106.0,3105.6,0.825]
[1731742981623,0.07436005,3105.9,3105.6,0.825]
[1731742982429,3.21979,3105.8,3105.6,0.825]
[1731742982726,3.21947,3106.1,3105.7,0.55]
[1731742982887,0.07436005,3106.0,3105.7,0.55]
[1731742984412,4.63696673,3106.1,3105.7,0.55]
[1731742984727,3.29383005,3106.1,3105.7,0.55]
[1731742984942,4.63696673,3106.1,3105.7,0.55]
[1731742985726,4.63696673,3106.1,3105.7,0.54895569]
[1731742986534,1.41749673,3106.1,3105.7,0.54895569]
[1731742987333,4.63696673,3106.1,3105.7,0.54895569]
[1731742987881,1.41749673,3106.1,3105.7,0.54895569]
[1731742992027,0.07436005,3106.1,3105.7,0.54895569]
[1731742992794,1.41749673,3106.1,3105.7,0.54895569]
[1731742994601,0.07436005,3106.1,3105.7,0.54895569]
[1731742994949,1.41749673,3106.1,3105.7,0.54895569]
[1731742995445,0.07436005,3106.1,3105.7,0.54895569]
[1731742995651,3.29348005,3106.5,3106.1,0.55]
[1731742995802,3.87329906,3106.6,3106.1,0.55]
[1731742995803,1.41749673,3106.4,3106.1,0.55]
[1731742996007,4.56249668,3106.2,3106.1,0.55]
[1731742997340,1.34313668,3106.2,3106.1,0.55]
[1731742997699,1.41749673,3106.2,3106.1,0.55]
[1731742997902,0.07436005,3106.2,3106.1,0.55]
[1731742998208,4.63677673,3106.3,3106.1,0.55]
[1731742999361,1.41749673,3106.3,3106.1,0.55]
[1731743003570,4.63678673,3106.3,3106.1,0.55]
[1731743004078,1.41749673,3106.3,3106.1,0.55]
[1731743004477,4.63676673,3106.3,3106.1,0.55]
[1731743004882,1.41749673,3106.3,3106.1,0.55]
[1731743005393,4.63676673,3106.3,3106.1,0.55]
[1731743015649,1.41749673,3106.3,3106.1,0.55]
[1731743018006,4.63675673,3106.3,3106.1,0.55]
[1731743020511,1.41749673,3106.3,3106.1,0.55]
[1731743021776,4.63676673,3106.3,3106.1,0.55]
[1731743023361,4.63676673,3106.3,3106.0,0.7747]
[1731743024629,7.85610673,3106.3,3106.0,0.7747]
[1731743024821,4.63676673,3106.3,3106.0,0.7747]
[1731743026224,3.21936,3106.2,3106.0,0.7747]
[1731743026426,0.07436005,3106.1,3106.0,1.3247]
[1731743027426,0.07436005,3106.2,3106.0,1.3247]
[1731743030044,3.29373005,3106.2,3106.0,1.3247]
[1731743030730,0.07436005,3106.2,3106.0,0.7747]
[1731743030931,3.21974,3105.9,3105.4,0.824]
[1731743031275,0.07436005,3106.0,3105.5,0.55]
[1731743031474,3.29395005,3106.0,3105.5,1.009418]
[1731743033573,3.2202,3105.4,3105.0,0.824]
[1731743033731,4.56333668,3105.4,3105.0,0.824]
[1731743034080,3.21959,3106.0,3105.4,3.2201]
[1731743034251,1.34313668,3105.7,3105.5,0.824]
[1731743034433,1.41749673,3105.7,3105.5,0.824]
[1731743034972,0.07436005,3105.7,3105.5,0.824]
[1731743035350,0.07436005,3105.7,3105.6,0.55]
[1731743037348,0.07436005,3105.7,3105.5,0.824]
[1731743037993,3.29424005,3105.7,3105.5,0.824]
[1731743040611,1.34313668,3105.6,3105.5,1.374]
[1731743041094,4.56311668,3105.6,3105.5,1.374]
[1731743041389,0.07436005,3105.7,3105.5,1.374]
[1731743041390,3.29421005,3105.8,3105.5,1.374]
[1731743042866,3.2199,3105.7,3105.5,1.374]
[1731743043065,3.2199,3105.7,3105.5,1.137793]
[1731743045670,3.21998,3105.6,3105.5,1.137793]
[1731743047804,3.21998,3105.6,3105.5,0.55]
[1731743048380,3.21998,3105.6,3105.4,0.55]
[1731743052604,3.29445005,3105.5,3105.3,0.7929]